bitfinex-derivatives/quotes_SOLF0:USTF0_20260126
["timestamp","ask_amount","ask_price","bid_price","bid_amount"]
[1769456463457,95.79507883,124.65,124.59,64.52987974]
[1769456465155,62.93597745,124.64,124.59,64.52987974]
[1769456466859,32.85910138,124.65,124.59,64.52987974]
[1769456467562,95.79507883,124.65,124.59,64.52987974]
[1769456469060,0.05982982,124.63,124.59,64.52987974]
[1769456469249,0.05982982,124.63,124.61,0.05376315]
[1769456475458,23.26716983,124.65,124.61,64.58364289]
[1769456481573,23.26716983,124.65,124.61,66.94777444]
[1769456481768,7.83115559,124.65,124.62,66.67926088]
[1769456481972,7.83115559,124.65,124.62,64.31512933]
[1769456483075,7.83115559,124.65,124.62,66.67926088]
[1769456483570,65.77493127,124.68,124.62,66.67926088]
[1769456483876,65.77493127,124.68,124.62,73.90866088]
[1769456484466,65.77493127,124.68,124.64,0.05783009]
[1769456486173,60.91276282,124.68,124.64,0.05783009]
[1769456487982,68.13886282,124.68,124.64,0.05783009]
[1769456492686,7.2269,124.67,124.64,0.05783009]
[1769456492987,72.36331731,124.67,124.6,66.67926088]
[1769456493581,72.36331731,124.67,124.6,73.90936088]
[1769456494188,7.2273,124.66,124.6,73.90936088]
[1769456495788,7.2273,124.66,124.62,64.31512933]
[1769456496987,7.2273,124.66,124.61,2.36413155]
[1769456496988,7.2266,124.67,124.64,64.31512933]
[1769456497188,62.77228576,124.69,124.64,64.31512933]
[1769456498588,69.99808576,124.69,124.64,64.31512933]
[1769456498788,72.36221731,124.69,124.64,64.31512933]
[1769456499290,69.99808576,124.69,124.64,64.31512933]
[1769456501786,14.4445,124.75,124.64,64.31512933]
[1769456501992,62.77228576,124.7,124.64,66.67926088]
[1769456502384,62.77228576,124.7,124.64,73.90756088]
[1769456503193,62.77228576,124.7,124.64,66.67926088]
[1769456503892,62.77228576,124.7,124.64,64.31512933]
[1769456504789,2.36413155,124.71,124.64,64.31512933]
[1769456505494,65.13641731,124.71,124.64,64.31512933]
[1769456505895,65.13641731,124.71,124.64,71.54332933]
[1769456506495,62.77228576,124.72,124.67,64.31512933]
[1769456506695,0.05475427,124.69,124.67,64.31512933]
[1769456507998,0.05475427,124.69,124.66,0.05182447]
[1769456509694,0.05475427,124.69,124.66,63.80374674]
[1769456512099,62.85228046,124.69,124.66,0.05182447]
[1769456514701,70.07788046,124.69,124.66,0.05182447]
[1769456520207,62.85228046,124.69,124.66,0.05182447]
[1769456522011,62.85228046,124.69,124.64,63.75192227]
[1769456525314,65.2130334,124.69,124.64,63.75192227]
[1769456527613,62.85228046,124.69,124.64,63.75192227]
[1769456528508,0.05475427,124.69,124.64,66.11267521]
[1769456529909,0.05475427,124.69,124.65,70.97962227]
[1769456533610,0.05475427,124.69,124.65,63.75192227]
[1769456534611,62.85228046,124.69,124.65,63.75192227]
[1769456534912,62.85228046,124.69,124.63,9.58935294]
[1769456534913,65.2130334,124.69,124.63,70.98052227]
[1769456535913,72.4387334,124.69,124.63,70.98052227]
[1769456538418,72.38437913,124.68,124.63,63.75192227]
[1769456539821,7.2266,124.67,124.63,63.75192227]
[1769456540520,72.38437913,124.68,124.63,63.75192227]
[1769456540715,0.05717525,124.66,124.63,63.75192227]
[1769456541514,61.38884557,124.66,124.61,61.94273265]
[1769456541719,63.74959851,124.66,124.61,61.94273265]
[1769456542321,61.38884557,124.66,124.61,61.94273265]
[1769456545525,68.61604557,124.66,124.61,61.94273265]
[1769456547728,70.97679851,124.66,124.61,61.94273265]
[1769456548231,68.61604557,124.66,124.61,61.94273265]
[1769456554829,70.97679851,124.66,124.61,61.94273265]
[1769456559024,68.61604557,124.66,124.61,61.94273265]
[1769456567234,70.97679851,124.66,124.61,61.94273265]
[1769456572532,68.61604557,124.66,124.61,61.94273265]
[1769456574240,112.3901,124.7,124.61,61.94273265]
[1769456574541,2.36075294,124.69,124.63,60.58830282]
[1769456574840,2.36075294,124.68,124.62,0.06027377]
[1769456575041,2.36075294,124.67,124.61,60.58830282]
[1769456575241,9.58795294,124.66,124.61,60.58830282]
[1769456575643,9.58960761,124.66,124.61,60.58830282]
[1769456576240,56.80740128,124.66,124.61,60.58830282]
[1769456576435,54.44559367,124.65,124.59,67.81950282]
[1769456576641,49.49062239,124.64,124.57,60.58830282]
[1769456576846,49.49062239,124.63,124.57,60.58830282]
[1769456577348,49.49062239,124.63,124.59,0.05268075]
[1769456578144,47.04008559,124.61,124.57,60.58830282]
[1769456578344,47.04008559,124.61,124.55,62.95071043]
[1769456579445,0.05500862,124.59,124.55,62.95071043]
[1769456580443,0.05500862,124.59,124.56,62.95071043]
[1769456583550,46.52945097,124.63,124.56,70.18361043]
[1769456585050,53.75845097,124.63,124.56,70.18361043]
[1769456585347,53.75845097,124.63,124.57,2.36240761]
[1769456587248,48.65024637,124.62,124.56,60.58830282]
[1769456587553,48.65024637,124.62,124.55,2.36240761]
[1769456587749,48.65024637,124.62,124.55,62.95071043]
[1769456588052,46.28783876,124.62,124.55,62.95071043]
[1769456589151,7.2303,124.61,124.55,62.95071043]
[1769456589954,7.2303,124.61,124.55,70.18421043]
[1769456590755,53.20864485,124.61,124.55,70.18421043]
[1769456597060,52.77035557,124.6,124.55,62.95071043]
[1769456597263,45.53965557,124.64,124.57,62.95071043]
[1769456597462,45.53965557,124.64,124.58,2.36240761]
[1769456598361,52.69813795,124.63,124.58,62.95071043]
[1769456608668,51.84348416,124.62,124.58,60.58830282]
[1769456608870,46.97629177,124.62,124.56,59.42930506]
[1769456609471,7.2295,124.63,124.56,59.42930506]
[1769456609666,44.55428778,124.62,124.56,61.79171267]
[1769456610369,7.2302,124.61,124.56,61.79171267]
[1769456610764,44.55428778,124.62,124.56,61.79171267]
[1769456611672,44.55428778,124.62,124.56,59.42930506]
[1769456611973,51.78378778,124.62,124.56,59.42930506]
[1769456612177,46.91669539,124.62,124.54,61.79171267]
[1769456612968,2.36240761,124.61,124.54,61.79171267]
[1769456613876,9.59300761,124.61,124.54,69.02581267]
[1769456617777,7.2306,124.61,124.54,69.02581267]
[1769456618084,7.2306,124.61,124.56,59.42930506]
[1769456626487,50.9210544,124.61,124.56,59.42930506]
[1769456631695,7.2308,124.6,124.56,59.42930506]
[1769456634893,43.28643539,124.59,124.53,56.44916353]
[1769456635196,43.28643539,124.62,124.55,56.44916353]
[1769456635498,43.28643539,124.62,124.55,58.81157114]
[1769456635796,43.28643539,124.62,124.55,58.8128159]
[1769456635993,7.2305,124.61,124.55,58.8128159]
[1769456636398,7.2305,124.61,124.57,56.44916353]
[1769456636594,50.51593539,124.62,124.57,56.44916353]
[1769456636790,7.2295,124.62,124.57,58.8128159]
[1769456637699,43.15288814,124.65,124.59,58.8128159]
[1769456637896,43.15288814,124.65,124.61,56.44916353]
[1769456638498,7.2272,124.66,124.61,56.44916353]
[1769456638698,43.15288814,124.67,124.61,58.8128159]
[1769456639000,50.37968814,124.67,124.62,58.8128159]
[1769456639200,43.15288814,124.67,124.62,58.8128159]
[1769456640002,50.37948814,124.67,124.62,56.44916353]
[1769456640889,43.15288814,124.67,124.62,56.44916353]
[1769456641096,52.61502753,124.66,124.6,56.44916353]
[1769456641597,45.34553485,124.63,124.58,56.44916353]
[1769456642801,45.34553485,124.63,124.58,39.01049023]
[1769456644003,7.2296,124.62,124.58,39.01049023]
[1769456645705,7.2296,124.62,124.56,56.44916353]
[1769456645706,67.59003607,124.62,124.56,56.44916353]
[1769456648006,65.2263837,124.62,124.56,56.44916353]
[1769456651713,7.2301,124.61,124.56,56.44916353]
[1769456652011,65.2268837,124.61,124.56,56.44916353]
[1769456653613,67.59053607,124.61,124.56,56.44916353]
[1769456656413,65.2268837,124.61,124.56,56.44916353]
[1769456660013,67.59053607,124.61,124.56,56.44916353]
[1769456664118,65.2268837,124.61,124.56,56.44916353]
[1769456669826,320.44,124.63,124.54,59.12962548]
[1769456669827,57.27621256,124.6,124.54,59.12962548]
[1769456671017,7.2314,124.59,124.54,59.12962548]
[1769456671527,62.14396019,124.59,124.54,59.12962548]
[1769456672429,7.2318,124.58,124.55,0.05388806]
[1769456672822,7.29258306,124.58,124.55,0.05388806]
[1769456682438,62.20514325,124.58,124.55,0.05388806]
[1769456682732,64.56879562,124.58,124.52,59.12962548]
[1769456682929,62.14516019,124.57,124.52,59.12962548]
[1769456685036,62.14516019,124.57,124.51,9.59945237]
[1769456685239,62.14556019,124.56,124.5,68.72967785]
[1769456686046,0.06131948,124.54,124.5,68.72967785]
[1769456687643,62.14506019,124.57,124.52,59.12962548]
[1769456694540,64.50871256,124.57,124.52,59.12962548]
[1769456694736,62.14506019,124.57,124.52,59.12962548]
[1769456694932,7.2331,124.56,124.52,59.12962548]
[1769456695139,60.6951486,124.56,124.5,55.45204885]
[1769456695738,67.9281486,124.56,124.5,55.45204885]
[1769456697045,65.56449623,124.56,124.5,55.45204885]
[1769456702545,65.56449623,124.56,124.5,62.68834885]
[1769456703148,58.33149623,124.56,124.51,62.68784885]
[1769456703344,58.33149623,124.56,124.51,65.05371402]
[1769456703543,58.33149623,124.56,124.51,62.68784885]
[1769456703742,60.6973614,124.58,124.52,55.51182543]
[1769456704149,58.33149623,124.58,124.52,62.74692543]
[1769456704347,58.33149623,124.58,124.52,65.1127906]
[1769456705849,60.6973614,124.58,124.52,62.74692543]
[1769456706060,67.9292614,124.58,124.52,55.51182543]
[1769456706355,60.6973614,124.57,124.52,55.51182543]
[1769456706547,60.6973614,124.56,124.52,0.05977658]
[1769456706746,60.6973614,124.55,124.5,55.45204885]
[1769456707249,60.75289577,124.55,124.5,55.45204885]
[1769456710048,67.98649577,124.55,124.5,55.45204885]
[1769456712664,65.6206306,124.55,124.5,55.45204885]
[1769456714254,58.33149623,124.53,124.48,55.45204885]
[1769456714460,60.75289577,124.55,124.48,55.45204885]
[1769456714659,60.6973614,124.55,124.48,55.45204885]
[1769456714860,67.9320614,124.53,124.48,55.45204885]
[1769456715061,67.99373052,124.53,124.48,55.45204885]
[1769456717562,65.62786535,124.53,124.48,55.45204885]
[1769456718467,7.29636912,124.53,124.48,55.45204885]
[1769456718662,0.06166912,124.53,124.48,55.45204885]
[1769456732274,0.06166912,124.53,124.48,62.68964885]
[1769456743873,2.36586517,124.55,124.5,58.30075666]
[1769456744074,57.16646115,124.57,124.5,58.30075666]
[1769456744675,7.2336,124.55,124.5,58.30075666]
[1769456749784,9.59946517,124.55,124.5,58.30075666]
[1769456754189,7.2336,124.55,124.5,58.30075666]
[1769456761692,2.36613027,124.58,124.5,60.66688693]
[1769456761891,59.04598712,124.6,124.53,52.59804395]
[1769456762695,2.36613027,124.59,124.53,52.59804395]
[1769456763000,7.2319,124.58,124.53,52.59804395]
[1769456763291,56.67985685,124.57,124.48,15.00458625]
[1769456763493,2.36613027,124.54,124.48,52.59804395]
[1769456764495,2.36613027,124.54,124.5,0.05527811]
[1769456764993,9.60043027,124.54,124.5,0.05527811]
[1769456765804,63.96805908,124.53,124.49,49.63384248]
[1769456766895,63.96805908,124.53,124.45,2.36613027]
[1769456767205,2.36613027,124.52,124.45,2.36613027]
[1769456767803,0.05293206,124.5,124.46,52.59804395]
[1769456771304,7.2349,124.53,124.48,52.59804395]
[1769456771608,59.04598712,124.55,124.48,52.59804395]
[1769456772308,59.04598712,124.55,124.47,9.60433027]
[1769456772309,7.2335,124.56,124.5,52.59804395]
[1769456772508,2.36613027,124.57,124.5,52.59804395]
[1769456772714,2.36613027,124.57,124.52,52.59804395]
[1769456773009,9.59853027,124.57,124.52,52.59804395]
[1769456773811,7.2324,124.57,124.52,52.59804395]
[1769456774409,0.05283318,124.56,124.53,52.65108809]
[1769456775207,63.91135685,124.59,124.53,52.65108809]
[1769456776620,7.2315,124.59,124.53,55.01721836]
[1769456778324,7.2315,124.59,124.53,52.65108809]
[1769456780425,7.2315,124.59,124.53,55.01721836]
[1769456780721,7.2315,124.59,124.55,53.18292963]
[1769456781320,7.2307,124.6,124.55,53.18292963]
[1769456781517,7.2307,124.6,124.55,55.5490599]
[1769456781717,7.2307,124.6,124.56,53.24451798]
[1769456791233,7.2301,124.61,124.56,53.24451798]
[1769456794331,9.59563027,124.62,124.56,53.24451798]
[1769456794630,598.29426418,124.65,124.58,53.18292963]
[1769456795020,7.2289,124.64,124.58,53.18292963]
[1769456795420,7.2289,124.63,124.6,0.05574631]
[1769456797237,56.57328351,124.62,124.6,0.05574631]
[1769456797535,58.93941378,124.62,124.56,53.18292963]
[1769456797730,66.17001378,124.61,124.56,53.18292963]
[1769456798732,63.80388351,124.61,124.56,53.18292963]
[1769456799127,63.80388351,124.61,124.57,0.05895234]
[1769456801134,7.2306,124.61,124.57,53.24188197]
[1769456802439,7.2307,124.6,124.57,0.05895234]
[1769456803039,56.57328351,124.6,124.57,0.05895234]
[1769456803231,58.99105943,124.6,124.57,0.05895234]
[1769456803439,58.99105943,124.6,124.53,53.18292963]
[1769456803440,56.57328351,124.58,124.53,53.18292963]
[1769456804838,0.05696939,124.57,124.53,53.18292963]
[1769456805040,7.28946939,124.57,124.53,53.18292963]
[1769456806640,7.28946939,124.57,124.52,2.36613027]
[1769456806641,0.05696939,124.57,124.55,53.18292963]
[1769456807029,7.2317,124.59,124.55,53.18292963]
[1769456811936,58.93941378,124.6,124.55,53.18292963]
[1769456812141,54.2235662,124.58,124.53,55.33429945]
[1769456812446,54.2235662,124.58,124.56,0.05981073]
[1769456812745,54.17241679,124.58,124.53,55.33429945]
[1769456812951,56.53854706,124.57,124.51,55.33429945]
[1769456813347,7.2337,124.55,124.51,55.33429945]
[1769456813542,9.59983027,124.55,124.51,55.33429945]
[1769456813753,56.53854706,124.54,124.49,55.33429945]
[1769456814143,56.59497444,124.54,124.49,55.33429945]
[1769456814345,63.82917444,124.54,124.49,55.33429945]
[1769456817756,7.2347,124.53,124.49,55.33429945]
[1769456817957,2.36613027,124.53,124.47,55.33429945]
[1769456818254,56.53854706,124.53,124.47,55.33429945]
[1769456818653,2.36613027,124.52,124.47,55.33429945]
[1769456818852,0.05337306,124.51,124.47,55.33429945]
[1769456823455,7.28937306,124.51,124.47,55.33429945]
[1769456826361,0.05337306,124.51,124.47,55.33429945]
[1769456826659,2.36775634,124.53,124.47,55.33429945]
[1769456826856,7.2347,124.53,124.47,57.70205579]
[1769456827157,7.2347,124.53,124.49,55.33429945]
[1769456827360,322.98775634,124.55,124.49,55.33429945]
[1769456827558,377.16017313,124.55,124.49,55.33429945]
[1769456828459,0.05282442,124.53,124.49,55.33429945]
[1769456828856,0.05282442,124.53,124.51,0.05326846]
[1769456835462,7.28752442,124.53,124.51,0.05326846]
[1769456842663,7.28752442,124.53,124.47,2.36775634]
[1769456842664,56.14560262,124.52,124.46,2.36775634]
[1769456842962,56.14560262,124.52,124.45,52.42214096]
[1769456843963,7.2366,124.5,124.45,52.42214096]
[1769456844166,7.28966352,124.5,124.45,52.42214096]
[1769456845669,7.2371,124.49,124.45,52.42214096]
[1769456846067,56.19866614,124.5,124.46,0.05780294]
[1769456846669,56.14560262,124.5,124.43,52.42214096]
[1769456846870,7.2379,124.48,124.43,52.42214096]
[1769456847666,63.38350262,124.48,124.43,52.42214096]
[1769456848270,61.01574628,124.48,124.43,52.42214096]
[1769456848467,112.5253,124.55,124.43,52.42214096]
[1769456848670,2.36775634,124.71,124.59,52.42214096]
[1769456848861,291.80560262,124.7,124.59,52.42214096]
[1769456849067,56.14560262,124.66,124.59,52.42214096]
[1769456849571,53.77784628,124.66,124.59,52.42214096]
[1769456849971,53.77784628,124.66,124.61,0.05247646]
[1769456852266,2.36775634,124.63,124.57,52.42214096]
[1769456852472,53.77784628,124.65,124.57,52.42214096]
[1769456852473,56.20247428,124.65,124.57,52.42214096]
[1769456852774,56.14560262,124.65,124.57,52.42214096]
[1769456853670,0.05136354,124.62,124.57,52.42214096]
[1769456853874,2.36775634,124.6,124.54,52.42214096]
[1769456854769,0.05510579,124.58,124.54,52.42214096]
[1769456867878,53.77784628,124.71,124.6,52.42214096]
[1769456868071,59.94005472,124.7,124.64,2.36775634]
[1769456868383,53.77784628,124.7,124.64,2.36775634]
[1769456869280,0.05253915,124.68,124.66,0.0582012]
[1769456871482,56.70981932,124.72,124.66,53.16178646]
[1769456871880,211.66,124.73,124.66,53.16178646]
[1769456872179,211.66,124.73,124.66,60.38888646]
[1769456872494,49.48561932,124.76,124.68,53.10358526]
[1769456872982,327.6811,124.77,124.68,60.32948526]
[1769456873176,320.46,124.77,124.69,6.0221227]
[1769456873489,320.46,124.77,124.71,53.16491341]
[1769456875385,327.681,124.77,124.71,53.16491341]
[1769456878688,49.48561932,124.76,124.71,0.06132815]
[1769456881383,327.681,124.77,124.71,53.16491341]
[1769456883386,320.46,124.77,124.71,53.16491341]
[1769456883585,56.70561932,124.79,124.71,53.16491341]
[1769456884091,49.48561932,124.79,124.71,60.32768526]
[1769456884492,49.48561932,124.79,124.74,0.05229327]
[1769456892789,49.48561932,124.79,124.74,53.15587853]
[1769456892988,49.48561932,124.79,124.74,55.5132382]
[1769456893789,49.48561932,124.79,124.74,53.15587853]
[1769456894500,49.48561932,124.79,124.74,0.05229327]
[1769456895291,56.70601932,124.78,124.74,0.05229327]
[1769456896394,7.2209,124.77,124.74,0.05229327]
[1769456897797,56.70651932,124.77,124.74,0.05229327]
[1769456898095,7.2214,124.76,124.74,0.05229327]
[1769456898485,49.48561932,124.75,124.68,55.46094493]
[1769456898686,49.48561932,124.75,124.69,50.24354635]
[1769456899199,7.2226,124.74,124.69,50.24354635]
[1769456899893,7.2226,124.74,124.69,47.88618668]
[1769456903200,56.70761932,124.75,124.69,47.88618668]
[1769456903402,59.06497899,124.75,124.69,47.88618668]
[1769456904102,56.70761932,124.75,124.69,47.88618668]
[1769456906004,47.92076408,124.73,124.66,2.35735967]
[1769456906301,47.92076408,124.71,124.65,48.70642695]
[1769456907896,57.50252375,124.71,124.65,48.70642695]
[1769456909408,432.4364,124.74,124.62,48.70642695]
[1769456909409,50.27812375,124.69,124.62,48.70642695]
[1769456911606,50.27812375,124.69,124.62,55.93582695]
[1769456911802,9.58235967,124.7,124.62,55.93582695]
[1769456912310,57.50312375,124.7,124.62,55.93582695]
[1769456915118,7.2256,124.69,124.62,55.93582695]
[1769456916215,55.14636408,124.69,124.62,55.93582695]
[1769456918017,47.92076408,124.69,124.62,55.93582695]
[1769456919721,55.14626408,124.69,124.62,55.93582695]
[1769456919920,2.35735967,124.7,124.64,48.70642695]
[1769456920913,9.58225967,124.7,124.64,48.70642695]
[1769456923625,9.58225967,124.7,124.64,55.93472695]
[1769456924721,57.50302375,124.7,124.64,48.70642695]
[1769456927523,55.14636408,124.69,124.64,48.70642695]
[1769456928121,55.14636408,124.69,124.62,55.93582695]
[1769456931829,7.2263,124.68,124.62,48.70642695]
[1769456932031,47.92076408,124.69,124.62,48.70642695]
[1769456932932,7.226,124.68,124.62,48.70642695]
[1769456933126,53.8868399,124.72,124.64,51.35791038]
[1769456933631,58.75388023,124.71,124.64,51.35791038]
[1769456937432,58.75388023,124.71,124.64,58.58611038]
[1769456939240,58.75388023,124.71,124.66,0.05265317]
[1769456939537,9.58105967,124.72,124.66,51.41056355]
[1769456939741,2.35735967,124.72,124.66,51.41056355]
[1769456940634,2.35735967,124.72,124.66,58.63756355]
[1769456940939,320.24,124.73,124.66,58.63756355]
[1769456941534,51.52948023,124.75,124.68,51.35791038]
[1769456942037,53.8868399,124.75,124.68,51.35791038]
[1769456942837,0.05090455,124.73,124.7,0.05113565]
[1769456947142,0.05090455,124.73,124.7,51.40904603]
[1769456954445,2.41051654,124.73,124.7,0.05113565]
[1769456955144,9.63371654,124.73,124.7,0.05113565]
[1769456955345,61.16319677,124.73,124.7,0.05113565]
[1769456955544,61.16319677,124.73,124.67,51.35791038]
[1769456956244,7.2238,124.72,124.67,51.35791038]
[1769456963647,53.93999677,124.73,124.65,51.44052467]
[1769456963648,49.55861654,124.71,124.65,51.44052467]
[1769456964547,0.05657582,124.69,124.65,51.44052467]
[1769456965150,49.55861654,124.73,124.67,51.44052467]
[1769456965345,47.19900455,124.74,124.67,51.44052467]
[1769456965543,49.55861654,124.74,124.67,51.44052467]
[1769456966839,7.2242,124.72,124.67,51.44052467]
[1769456968345,54.42340455,124.71,124.65,51.44052467]
[1769456969141,7.2249,124.7,124.65,51.44052467]
[1769456977252,9.58451199,124.7,124.65,51.44052467]
[1769456977446,7.2255,124.69,124.65,51.44052467]
[1769456980458,7.2261,124.68,124.63,51.44052467]
[1769456981356,47.19900455,124.69,124.63,51.44052467]
[1769456982950,54.42470455,124.69,124.63,51.44052467]
[1769456983156,2.35961199,124.68,124.63,51.44052467]
[1769456983856,9.58571199,124.68,124.63,51.44052467]
[1769456995873,7.2266,124.67,124.63,51.44052467]
[1769456996171,55.73327488,124.67,124.63,51.44052467]
[1769456996572,9.58681199,124.66,124.61,50.49112802]
[1769456997775,7.2255,124.69,124.62,2.35961199]
[1769456997976,50.86628687,124.7,124.63,50.49112802]
[1769456998966,7.2261,124.68,124.63,50.49112802]
[1769457001873,7.2266,124.67,124.63,50.49112802]
[1769457002073,50.86628687,124.68,124.63,50.49112802]
[1769457003475,2.35961199,124.68,124.63,50.49112802]
[1769457003680,9.58751795,124.69,124.63,50.49112802]
[1769457007084,7.226,124.68,124.63,50.49112802]
[1769457007284,48.50667488,124.68,124.63,50.49112802]
[1769457008389,7.2267,124.67,124.63,50.49112802]
[1769457009281,7.226,124.69,124.63,50.49112802]
[1769457011985,55.73267488,124.69,124.63,50.49112802]
[1769457012785,7.2262,124.68,124.63,50.49112802]
[1769457014085,9.58771795,124.68,124.63,50.49112802]
[1769457016779,2.36151795,124.68,124.63,50.49112802]
[1769457017179,9.58751795,124.68,124.63,50.49112802]
[1769457019888,7.2266,124.67,124.63,50.49112802]
[1769457022387,9.58761795,124.68,124.63,50.49112802]
[1769457031296,50.51075005,124.68,124.63,50.49112802]
[1769457032796,7.2273,124.66,124.63,50.49112802]
[1769457033796,7.2278,124.65,124.63,37.84052802]
[1769457034500,7.2272,124.66,124.63,37.84052802]
[1769457034687,50.51075005,124.68,124.63,37.84052802]
[1769457034886,13.53881293,124.67,124.63,37.84052802]
[1769457035091,7.2272,124.67,124.63,37.84052802]
[1769457036300,7.2274,124.66,124.63,37.84052802]
[1769457041208,7.2266,124.67,124.63,37.84052802]
[1769457042705,7.2273,124.66,124.63,37.84052802]
[1769457061223,57.93924995,124.66,124.6,50.76831459]
[1769457062720,7.2273,124.66,124.6,50.76831459]
[1769457063423,371.03194995,124.67,124.6,57.99891459]
[1769457063623,371.03194995,124.67,124.6,50.76831459]
[1769457063817,320.32,124.68,124.6,53.12983254]
[1769457064714,373.3934679,124.68,124.6,53.12983254]
[1769457064921,7.2271,124.67,124.6,60.36033254]
[1769457065518,7.2271,124.67,124.6,60.3607122]
[1769457067328,0.05097683,124.65,124.6,60.3607122]
[1769457067721,0.05097683,124.65,124.62,0.05606955]
[1769457067921,7.2271,124.67,124.63,50.76831459]
[1769457077038,9.58899761,124.67,124.63,50.76831459]
[1769457078437,7.2277,124.66,124.63,37.85281459]
[1769457078635,9.58959761,124.66,124.63,25.24291459]
[1769457078834,2.36189761,124.66,124.62,0.05606955]
[1769457079134,59.41316492,124.66,124.62,0.05606955]
[1769457079335,53.09834798,124.66,124.62,0.05606955]
[1769457079934,2.36189761,124.64,124.58,2.36189761]
[1769457080638,2.36189761,124.64,124.59,49.35668943]
[1769457081137,7.2289,124.63,124.59,49.35668943]
[1769457081430,2.36189761,124.64,124.59,49.35668943]
[1769457082940,9.59029761,124.64,124.59,49.35668943]
[1769457086640,7.2278,124.65,124.59,49.35668943]
[1769457094840,7.2284,124.64,124.59,49.35668943]
[1769457095044,51.99965331,124.64,124.59,49.35668943]
[1769457095747,51.99965331,124.64,124.6,0.0515073]
[1769457095946,7.2289,124.63,124.6,0.0515073]
[1769457096346,7.2289,124.63,124.6,49.40819673]
[1769457102458,7.2289,124.63,124.6,0.0515073]
[1769457104453,7.2289,124.63,124.6,49.40819673]
[1769457109167,56.35212015,124.63,124.6,0.0515073]
[1769457110468,7.2289,124.63,124.6,0.0515073]
[1769457111562,56.35212015,124.63,124.6,0.0515073]
[1769457112669,7.2289,124.63,124.6,0.0515073]
[1769457113063,56.35212015,124.63,124.6,0.0515073]
[1769457113669,7.2289,124.63,124.6,0.0515073]
[1769457116170,56.35212015,124.63,124.6,0.0515073]
[1769457116372,7.2289,124.63,124.6,0.0515073]
[1769457116869,327.6489,124.63,124.6,0.0515073]
[1769457118670,7.2283,124.65,124.6,48.59191651]
[1769457118970,320.42,124.64,124.6,48.59191651]
[1769457119866,369.54322015,124.64,124.6,0.0515073]
[1769457120768,56.35042015,124.66,124.6,48.59191651]
[1769457121073,320.42,124.65,124.6,48.59191651]
[1769457121873,327.6478,124.65,124.6,48.59191651]
[1769457123469,7.2284,124.64,124.6,48.59191651]
[1769457125077,369.54322015,124.65,124.6,48.59191651]
[1769457126472,376.77122015,124.65,124.6,48.59191651]
[1769457127478,56.35122015,124.65,124.6,48.59191651]
[1769457127776,376.73122015,124.65,124.6,48.59191651]
[1769457129476,56.35122015,124.65,124.6,48.59191651]
[1769457130774,49.12322015,124.67,124.62,48.54040921]
[1769457131172,217.22,124.69,124.62,48.54040921]
[1769457131173,266.34322015,124.69,124.62,48.54040921]
[1769457131377,273.56872015,124.69,124.62,55.76990921]
[1769457131879,49.12322015,124.68,124.62,55.76990921]
[1769457134683,49.12322015,124.66,124.6,50.90276698]
[1769457134981,49.12322015,124.66,124.6,48.54040921]
[1769457135482,0.06179509,124.64,124.6,48.54040921]
[1769457138384,49.18501524,124.64,124.58,50.90276698]
[1769457138684,49.18501524,124.64,124.58,48.54040921]
[1769457139886,49.18501524,124.64,124.58,55.77210921]
[1769457140081,49.18501524,124.64,124.58,48.54040921]
[1769457141692,56.41341524,124.64,124.58,48.54040921]
[1769457143194,2.36235777,124.63,124.58,48.54040921]
[1769457146395,9.59135777,124.63,124.58,48.54040921]
[1769457153408,54.76296768,124.62,124.58,48.54040921]
[1769457153594,47.53336768,124.62,124.58,48.54040921]
[1769457154300,0.05287706,124.61,124.58,48.54040921]
[1769457155198,0.05287706,124.61,124.56,46.99667485]
[1769457159106,7.28297706,124.61,124.56,46.99667485]
[1769457163196,0.05287706,124.61,124.56,46.99667485]
[1769457165403,0.05287706,124.61,124.56,54.22957485]
[1769457165703,0.05287706,124.61,124.58,46.99667485]
[1769457174612,2.36235777,124.6,124.57,0.05176552]
[1769457174810,50.88717618,124.55,124.41,112.6407]
[1769457175007,2.36235777,124.53,124.45,2.36235777]
[1769457175208,2.36235777,124.52,124.45,2.36235777]
[1769457176011,9.59775777,124.52,124.45,2.36235777]
[1769457176719,9.59775777,124.52,124.46,49.51461796]
[1769457177407,7.2359,124.51,124.46,49.51461796]
[1769457177607,0.05069411,124.5,124.46,49.51461796]
[1769457178416,7.2371,124.49,124.46,49.51461796]
[1769457178909,0.05069411,124.5,124.46,49.51461796]
[1769457190723,53.30626017,124.5,124.44,49.51461796]
[1769457191114,2.36838988,124.49,124.44,49.51461796]
[1769457191726,58.17437029,124.5,124.44,49.51461796]
[1769457192025,2.36838988,124.49,124.44,49.51461796]
[1769457193326,9.60548988,124.49,124.44,49.51461796]
[1769457194228,60.49266606,124.49,124.44,49.51461796]
[1769457194426,7.2377,124.48,124.4,9.61008988]
[1769457194724,2.36838988,124.47,124.41,49.51461796]
[1769457195430,0.05347895,124.45,124.41,49.51461796]
[1769457204137,7.29297895,124.45,124.41,49.51461796]
[1769457204939,0.05347895,124.45,124.41,49.51461796]
[1769457208132,2.36838988,124.5,124.43,46.59829809]